Cogmind - Beta 15 @@@ ROGUE MODE // 2025.05.11 @ 11:53:49 Player: Demo Result: Destroyed by H-77 Assassin with Coil Gun Performance ------------- Evolutions (6) 3000 Regions Visited (15) 3000 Robots Destroyed (219) 1095 Value Destroyed (7761) 7761 Prototype IDs (24) 480 Alien Tech Used (0) 0 Bonus (5217) 5217 TOTAL SCORE: 20553 Bonus ------- High Alert Combat Kills 638 Follower Combat Kills 2364 Entered Garrisons 400 Used RIF Installer 500 Network Hubs Disabled 200 Registered with UFD 300 Met Optimus in HQ 500 Built Enhanced Grunts 300 A7 Reached Mainframe 300 Friendly Fire -285 Cogmind --------- Core Integrity 0/1150 Matter 180/300 Energy 166/170 System Corruption 10% Temperature Cool (8) Movement Hovering (48) Location -4/Garrison Parts ------- > --- POWER (1) -------- Light Antimatter Reactor > --- PROPULSION (5) --- Improved Antigrav System Improved Antigrav System (fused) Improved Antigrav System Improved Antigrav System Improved Antigrav System > --- UTILITY (10) ----- Large Storage Unit Advanced Signal Interpreter Improved Targeting Computer Hacking Suite Relay Coupler [NC] (22) Relay Coupler [NC] (25) Relay Coupler [Swarmer] (32) Relay Coupler [Grunt] (31) Relay Coupler [Grunt] (30) Relay Coupler [Hunter] (10) > --- WEAPON (3) ------- Arc Projector Phase Gun Remote Datajack > --- INVENTORY (15) --- Light Nuclear Core Improved Antigrav System Improved Antigrav System Improved Antigrav System Improved Antigrav System Advanced Cooling System Advanced Matter Compressor (400) Long-range Sensor Array Improved Transmission Jammer Phase Shifter Relay Coupler [Brawler] (29) Relay Coupler [Behemoth] (9) Phase Gun Railgun Heavy Gauss Cannon Peak State ------------ > --- POWER ------------ Quantum Reactor > --- PROPULSION ------- Myomer Leg Myomer Leg Myomer Leg > --- UTILITY ---------- Advanced Cooling System Large Storage Unit Advanced Signal Interpreter Improved Targeting Computer Improved Weapon Cycler Improved Weapon Cycler Improved Transmission Jammer Jamming Amplifier Centrium Medium Armor Plating Centrium Medium Armor Plating > --- WEAPON ----------- Advanced Variable Charge Gun Advanced KE Penetrator Advanced KE Penetrator > --- INVENTORY -------- Quantum Reactor Centrium Heavy Treads Advanced Heat Sink Compact Battery Advanced Matter Compressor Centrium Medium Armor Plating Improved Dynamic Insulation System Quantum Rifle Advanced KE Penetrator Advanced KE Penetrator Guided EMP Blaster Plasma Cutter Phasing Sabre [Rating: 119] Favorites ----------- Power Heavy Ion Engine Engine Heavy Ion Engine Power Core Neutrino Core Reactor Quantum Reactor Propulsion Wheel Treads Armored Medium Treads Leg Myomer Leg Wheel Wheel Hover Unit Improved Antigrav System Flight Unit VTOL Module Utility Large Storage Unit Device Improved Weapon Cycler Storage Large Storage Unit Processor Improved Targeting Computer Hackware Hacking Suite Protection Centrium Medium Armor Plating Weapon Improved EM Shotgun Energy Gun Improved EM Shotgun Energy Cannon Disruptor Cannon Ballistic Gun Advanced KE Penetrator Ballistic Cannon Heavy Assault Cannon Launcher Guided EMP Blaster Special Weapon Plasma Cutter Impact Weapon Mace Slashing Weapon Phasing Sabre Piercing Weapon Force Lance Special Melee Weapon Advanced Datajack Build | -11 -10 -9 -9 -9 -9 -6 -5 -5 -5 -5 -5 -4 -4 -4 -4 ------- Run | Yrd Mat Mat Sto Rec Scr Fac Fac Ext Cet Arc Hub Fac Gar Fac Gar Slots Evolved 12 | . . 2 . . . 6 2 . . . . 2 . . . Power . | . . . . . . . . . . . . . . . . Propulsion 3 | . . . . . . 1 . . . . . 2 . . . Utility 8 | . . 2 . . . 4 2 . . . . . . . . Weapon 1 | . . . . . . 1 . . . . . . . . . Parts Attached 223 | 8 13 6 19 2 3 26 34 25 12 3 7 41 12 8 4 Power 22 | 1 2 2 2 . . 1 2 5 1 . 1 3 1 1 . Engine 10 | 1 2 2 2 . . 1 1 . . . . 1 . . . Core 7 | . . . . . . . 1 5 . . . . 1 . . Reactor 5 | . . . . . . . . . 1 . 1 2 . 1 . Propulsion 58 | 3 3 2 2 2 1 8 6 6 3 . 3 12 2 5 . Treads 12 | . 1 1 . . . 2 2 3 1 . 1 1 . . . Leg 9 | . . . . . . . . 3 2 . . 4 . . . Wheel 28 | 3 2 1 2 2 1 6 4 . . . 2 5 . . . Hover 6 | . . . . . . . . . . . . 1 . 5 . Flight 3 | . . . . . . . . . . . . 1 2 . . Utility 92 | 2 4 2 7 . 2 11 15 11 2 3 2 20 8 1 2 Device 38 | 1 . 1 5 . . 6 8 3 . 2 . 11 1 . . Storage 11 | 1 3 . . . . 2 1 1 . . . 2 . 1 . Processor 14 | . 1 1 . . 1 1 4 2 . . . 4 . . . Hackware 12 | . . . . . . . . . . 1 . 3 6 . 2 Protection 17 | . . . 2 . 1 2 2 5 2 . 2 . 1 . . Artifact . | . . . . . . . . . . . . . . . . Weapon 51 | 2 4 . 8 . . 6 11 3 6 . 1 6 1 1 2 Energy Gun 13 | 1 . . 3 . . 2 2 . 2 . . 1 1 . 1 Energy Cannon 7 | . 1 . . . . 1 1 1 . . . 3 . . . Ballistic Gun 17 | 1 3 . 2 . . . 5 1 3 . 1 . . 1 . Ballistic Cannon 1 | . . . . . . 1 . . . . . . . . . Launcher 2 | . . . 2 . . . . . . . . . . . . Special Weapon 7 | . . . . . . 2 3 . 1 . . . . . 1 Impact Weapon 1 | . . . 1 . . . . . . . . . . . . Slashing Weapon 1 | . . . . . . . . 1 . . . . . . . Piercing Weapon 1 | . . . . . . . . . . . . 1 . . . Special Melee Weapon 1 | . . . . . . . . . . . . 1 . . . Unidentified Prototypes 12 | . . 1 3 . . . . 1 4 . . 3 . . . Corrupted Parts 3 | . . . . . . 1 . . . . . . 2 . . System Corruption 5 | . . . . . . 1 . . . . . . 4 . . Parts Lost 87 | . 3 1 3 . . 15 10 6 . 1 8 37 1 1 1 Power 6 | . . . . . . . 1 . . . 1 4 . . . Propulsion 28 | . 1 1 . . . 6 4 3 . . 2 11 . . . Utility 33 | . 1 . 2 . . 6 3 1 . 1 3 15 . . 1 Weapon 20 | . 1 . 1 . . 3 2 2 . . 2 7 1 1 . Highest Loss Streak 16 | . 3 1 1 . . 6 7 2 . 1 7 16 1 1 1 To Critical Strikes . | . . . . . . . . . . . . . . . . Average Backups 12 | 2 10 14 13 14 13 10 11 13 13 12 12 10 4 8 14 Power . | . . 1 1 1 . . . . . 1 . . . . 1 Propulsion 1 | 1 4 4 3 3 1 . 2 1 1 1 . . . . 4 Utility 4 | . 3 5 4 3 4 2 3 6 6 5 5 5 4 4 6 Weapon 3 | . 1 3 5 6 3 1 2 3 4 4 4 3 . 2 2 Tool/Special . | . . . . . . . . . . . . . . . . Unused Backups 45 | 2 4 . 6 1 7 3 3 3 2 . 1 1 . . 12 Power 3 | . . . . . 1 . . 1 . . . 1 . . . Propulsion 6 | 2 . . . . . . . . . . . . . . 4 Utility 21 | . 3 . 4 . 2 3 1 1 1 . . . . . 6 Weapon 14 | . 1 . 2 1 4 . 1 1 1 . 1 . . . 2 Tool/Special 1 | . . . . . . . 1 . . . . . . . . Average Slot Usage (%) 93 | . 91 99 98 100 100 84 89 97 99 99 94 78 59 95 97 Engine 5 | . 14 11 11 11 11 6 2 . . . . . . . . Core 1 | . . . . . . . 2 5 . . . . 2 4 . Reactor 1 | . . . . . . . . . 4 5 4 4 . . 5 Treads 3 | . 4 4 1 . . 4 4 9 . . . 4 . . . Leg 2 | . . . . . . . . 3 16 17 7 2 . . . Wheel 11 | . 21 17 20 22 22 13 10 3 . . 4 4 . . . Device 13 | . 2 10 13 11 11 20 18 11 17 23 21 11 5 . . Storage 8 | . 14 11 11 11 11 6 10 10 5 5 5 4 . 3 5 Processor 14 | . 5 22 13 11 11 7 17 20 23 17 17 16 14 10 10 Hackware 2 | . . . . . . . . . . . . 8 20 32 33 Protection 7 | . . . 6 11 11 7 2 10 10 10 12 4 2 5 1 Energy Gun 8 | . . . 12 22 22 8 5 . 4 5 4 . 2 5 8 Energy Cannon 1 | . 5 11 1 . . 3 . 1 . . . 3 . . . Ballistic Gun 6 | . 21 11 6 . . . 6 14 7 11 10 6 . 4 2 Peak Build Rating 119 | 7 11 13 25 21 25 53 88 96 115 119 119 119 63 96 96 Average Rating 57 | 5 7 12 19 20 23 46 68 83 108 117 111 95 52 83 91 On Entrance 51 | . 7 11 13 20 20 25 32 82 94 115 119 101 42 55 89 Naked Turns . | . . . . . . . . . . . . . . . . Heaviest Build 87 | 14 33 34 42 38 40 75 72 78 75 76 86 87 15 46 48 Greatest Support 80 | 26 20 20 20 22 20 40 36 77 75 75 80 80 21 60 48 Greatest Overweight (x) 7 | . 3 3 3 1 1 7 4 2 2 1 3 5 . 1 . Average Overweight (x) 1 | . . 1 1 1 1 2 1 . . . 1 1 . . . Largest Inventory Capacity 15 | 8 15 15 15 15 15 15 15 15 15 15 15 15 5 15 15 Average Capacity 14 | 7 11 15 15 15 15 15 15 15 15 15 15 14 5 12 15 Most Carried 15 | 8 15 15 15 15 15 15 15 15 15 15 15 15 5 15 15 Average Carried 13 | 2 10 14 14 14 14 13 14 14 14 14 14 10 4 8 14 Final Capacity 15 | 8 15 15 15 15 15 15 15 15 15 15 15 5 5 15 15 Final Carried 15 | 6 15 15 15 15 15 14 15 15 15 15 8 5 5 15 15 Class Distribution -------------------- 24% | Scavenger-Gunner 18% | Scavenger-Mutant 18% | Commander-Mutant 15% | Mutant 13% | Scavenger-Tank Dominant Class ---------------- Mutant | -10/Materials Mutant | -9/Materials Scavenger-Mutant | -9/Storage Mutant | -9/Recycling Commander-Mutant | -9/Scraptown Scavenger-Gunner | -6/Factory Scavenger-Tank | -5/Factory Scavenger-Gunner | -5/Extension Commander-Gunner | -5/Cetus Scavenger-Gunner | -5/Archives Scavenger-Gunner | -5/Hub_04(d) Scavenger-Mutant | -4/Factory Mutant | -4/Garrison Bothacker-Mutant | -4/Factory Bothacker-Gunner | -4/Garrison Resources | -11 -10 -9 -9 -9 -9 -6 -5 -5 -5 -5 -5 -4 -4 -4 -4 ----------- Run | Yrd Mat Mat Sto Rec Scr Fac Fac Ext Cet Arc Hub Fac Gar Fac Gar Matter Collected 6847 | 346 291 322 788 20 30 475 776 1697 205 172 434 1016 219 . 56 Remotely . | . . . . . . . . . . . . . . . . Salvage Created 11113 | 215 432 503 1277 814 . 2204 1234 1754 80 158 992 1394 . . 56 Parts 591 | 19 29 29 81 44 . 121 66 75 7 10 35 69 . . 6 Haulers Intercepted 13 | . 1 2 4 . . 1 1 . . . 2 2 . . . Recyclers Shooed 15 | 1 . . . 1 . 3 5 1 . . . 4 . . . Parts Field Recycled . | . . . . . . . . . . . . . . . . Retrieved Matter . | . . . . . . . . . . . . . . . . Parts Self-Destructed . | . . . . . . . . . . . . . . . . Prevented . | . . . . . . . . . . . . . . . . Kills | -11 -10 -9 -9 -9 -9 -6 -5 -5 -5 -5 -5 -4 -4 -4 -4 ------- Run | Yrd Mat Mat Sto Rec Scr Fac Fac Ext Cet Arc Hub Fac Gar Fac Gar Combat Hostiles Destroyed 127 | . 9 9 23 6 . 20 7 26 1 1 8 15 . . 2 Melee 3 | . . . . . . . . . . . . 3 . . . Guns 79 | . 8 3 17 4 . 6 5 22 1 1 3 7 . . 2 Cannons 22 | . 1 6 3 . . 6 . 2 . . . 4 . . . AOE 16 | . . . 2 2 . 5 . 2 . . 5 . . . . Classes Destroyed 20 | 3 3 4 . 1 . 7 1 1 . . . . . . . Worker 13 | 2 . . 3 . . 2 2 . . . 2 2 . . . Builder 23 | . . 1 . 1 . 12 3 2 . . 1 3 . . . Tunneler 6 | 5 . . . 1 . . . . . . . . . . . Hauler 14 | . 1 2 4 . . 2 1 . . . 2 2 . . . Recycler 14 | 1 . . . 3 . 5 4 . . . 1 . . . . Carrier 1 | . . . . . . . . 1 . . . . . . . Mechanic 2 | . . . . . . 1 . 1 . . . . . . . Operator 5 | . . 1 1 . . . . . . 2 . 1 . . . Watcher 11 | . 2 2 2 . . 1 . . . . 2 2 . . . Swarmer 17 | . . 3 4 . . . . 4 . . 4 . . . 2 Grunt 58 | . 9 4 12 1 . 10 1 14 . . 2 5 . . . Brawler 2 | . . . . . . 1 . 1 . . . . . . . Duelist 3 | . . . . . . 3 . . . . . . . . . Protector 3 | . . . . 2 . 1 . . . . . . . . . Sentry 20 | . . 2 7 4 . 1 1 2 . 1 1 1 . . . Specialist 3 | . . . . . . 1 . 2 . . . . . . . Hunter 8 | . . . . . . . 2 1 . . 1 4 . . . Programmer 9 | . . . . . . 1 2 1 . . . 5 . . . Heavy 2 | . . . . . . 1 1 . . . . . . . . Cetus Guard 1 | . . . . . . . . . 1 . . . . . . Enhanced Grunt 1 | . . . . . . . . . . . 1 . . . . Assembled 3 | . . . . . . 3 . . . . . . . . . Thug 1 | . . . . . . . . . . . 1 . . . . Savage 1 | . . . . . . . . 1 . . . . . . . Guerrilla 1 | . . . . . . . . . . . 1 . . . . Best Kill Streak 12 | 4 5 4 8 4 . 12 4 5 1 2 5 11 . . 2 Combat Bots Only 8 | . 5 4 5 3 . 6 2 4 1 1 5 8 . . 2 Max Kills in Single Turn 10 | 1 1 1 3 4 . 10 1 2 1 2 4 2 . . 1 Gunslinging . | . . . . . . . . . . . . . . . . Exploded 4 | . . . 2 2 . 3 . 1 . . 4 . . . . Melee 1 | . . . . . . . . . . . . 1 . . . Uniques/NPCs Destroyed . | . . . . . . . . . . . . . . . . Combat | -11 -10 -9 -9 -9 -9 -6 -5 -5 -5 -5 -5 -4 -4 -4 -4 -------- Run | Yrd Mat Mat Sto Rec Scr Fac Fac Ext Cet Arc Hub Fac Gar Fac Gar Hostile Shots Fired 1075 | . 62 27 74 4 . 102 104 157 21 4 129 328 21 30 12 Missed 329 | . 17 8 19 2 . 29 28 51 9 1 31 107 8 13 6 Hits 746 | . 45 19 55 2 . 73 76 106 12 3 98 221 13 17 6 Melee 18 | . . . . . . 16 . 2 . . . . . . . Projectile 728 | . 45 19 55 2 . 57 76 104 12 3 98 221 13 17 6 AOE 8 | . . . . . . 6 . . . . . 2 . . . Critical Strikes 50 | . . 1 2 . . 2 4 9 1 . 11 18 1 . 1 Part Disruptions 3 | . . . . . . . . . . . 2 . 1 . . Damage Taken 15852 | . 581 238 647 113 . 2171 1493 1919 263 177 2840 4836 152 325 97 Core 2195 | . 109 52 59 . . 88 411 117 25 73 103 1027 62 46 23 Absorbed by Shields 252 | . . . . 9 . . . 96 117 . . . 30 . . Reduced by Siege Mode 128 | . . . . . . . . . . . . 128 . . . Redirected to Shielding 63 | . . . . . . . . 21 42 . . . . . . Ignored by Resistances 327 | . . . . . . . 181 146 . . . . . . . Regen/Repaired (Parts) 234 | . . . 74 . . 160 . . . . . . . . . Core Remaining (%) 68 | 100 56 . . . 72 89 . . . . 27 . . . . Volleys Fired 575 | 22 47 26 83 13 . 64 61 80 12 12 28 69 7 2 49 Largest 3 | 2 2 2 2 2 . 3 3 3 3 3 3 3 1 2 3 Hottest 310 | 60 80 83 90 90 . 198 241 149 149 150 150 310 55 90 178 Shots Fired 1162 | 44 93 52 165 26 . 132 140 228 20 32 56 112 7 5 50 Gun 935 | 44 81 26 140 26 . 70 131 204 11 32 45 70 3 5 47 Cannon 189 | . 12 26 24 . . 52 6 20 7 . . 42 . . . Launcher 22 | . . . 1 . . 6 . 4 . . 11 . . . . Special 16 | . . . . . . 4 3 . 2 . . . 4 . 3 Kinetic 641 | 22 81 26 65 . . 7 96 204 10 24 36 65 . 3 2 Thermal 288 | 22 12 26 65 . . 62 35 . 1 8 9 42 4 . 2 Explosive . | . . . . . . . . . . . . . . . . Electromagnetic 221 | . . . 35 26 . 59 6 24 7 . 11 5 3 2 43 Robot Hit Streak 33 | 4 16 15 33 28 . 17 16 11 6 14 7 18 . 3 7 Robot Miss Streak 6 | 2 3 2 2 5 . 3 6 6 3 4 2 2 . 1 1 Penetration Max 2 | . . . . . . . 1 2 1 1 1 1 . . . Secondary Targets 10 | . 1 . 2 . . . 2 2 . . 1 1 . . 1 Max Gunslinging Chain 1 | . 1 . 1 . . . 1 1 . . 1 1 . . 1 Shots Hit Robots 769 | 23 66 36 111 20 . 85 91 153 14 27 25 96 . 14 8 Core Hits 452 | 9 23 19 48 29 . 97 44 83 7 10 36 44 . . 3 Critical Kills 29 | . . . . . . . 3 14 1 2 1 7 . . 1 Critical Parts Destroyed 44 | . . . . . . . 10 22 . 4 2 6 . . . Critical Strikes 84 | . . . 2 . . . 15 41 1 8 3 13 . . 1 Burn 4 | . . . 2 . . . 2 . . . . . . . . Meltdown 2 | . . . . . . . . . . . . 2 . . . Destroy 78 | . . . . . . . 13 41 1 8 3 11 . . 1 Melee Attacks 62 | . . . 16 . . . . 1 . . . 30 3 12 . Impact 16 | . . . 16 . . . . . . . . . . . . Slashing 6 | . . . . . . . . 1 . . . 5 . . . Piercing 25 | . . . . . . . . . . . . 25 . . . Sneak Attacks 11 | . . . . . . . . . . . . 3 . 8 . Combat Hostiles . | . . . . . . . . . . . . . . . . Follow-up Attacks . | . . . . . . . . . . . . . . . . Damage Inflicted 20644 | 264 894 612 1907 858 . 4146 1826 2962 181 750 2040 4007 . 71 126 Guns 11807 | 264 699 208 1519 404 . 1033 1518 2280 107 750 781 2047 . 71 126 Cannons 3311 | . 195 404 298 . . 754 104 220 74 . . 1262 . . . Explosions 5000 | . . . 90 454 . 2359 192 462 . . 1259 184 . . . Melee 514 | . . . . . . . . . . . . 514 . . . Ramming 12 | . . . . . . . 12 . . . . . . . . Kinetic 8255 | 86 699 208 660 . . 178 872 2280 107 574 648 1867 . 23 53 Thermal 6775 | 178 195 404 955 454 . 2012 838 14 . 176 221 1276 . . 52 Explosive 499 | . . . . . . 315 . . . . . 184 . . . Electromagnetic 4589 | . . . 292 404 . 1641 104 668 74 . 1171 166 . 48 21 Impact . | . . . . . . . . . . . . . . . . Slashing 166 | . . . . . . . . . . . . 166 . . . Piercing 348 | . . . . . . . . . . . . 348 . . . Highest Corruption 10 | . . . . . . 3 . 3 3 3 9 8 10 10 10 Average Corruption 3 | . . . . . . 1 . 2 3 2 6 3 8 10 10 Corruption Purged 13 | . . . . . . 3 . . . 3 . 7 . . . Corruption Blocked . | . . . . . . . . . . . . . . . . Effects 102 | . . . . . . 5 . 24 9 10 6 14 9 10 15 Message Errors 29 | . . . . . . 1 . 6 6 3 1 3 1 2 6 Matter Fused 25 | . . . . . . 1 . 8 3 2 2 5 2 . 2 Heat Flow Errors 8 | . . . . . . 1 . 3 . 1 . 1 . 2 . Energy Discharges 12 | . . . . . . . . 2 . 2 1 3 1 3 . Parts Rejected 2 | . . . . . . . . 1 . . . . 1 . . Parts Fused 3 | . . . . . . . . . . . . 1 1 . 1 Data Loss (minor) 7 | . . . . . . 1 . 1 . 2 . . 3 . . Data Loss (major) 2 | . . . . . . 1 . 1 . . . . . . . Misfires 4 | . . . . . . . . 2 . . . . . 1 1 Alerts 1 | . . . . . . . . . . . 1 . . . . Misdirections 3 | . . . . . . . . . . . . . . 2 1 Weapon Failures 6 | . . . . . . . . . . . 1 1 . . 4 Overload Shots 7 | . . . . . . . 2 . . . . 5 . . . Effects 1 | . . . . . . . 1 . . . . . . . . Energy Bleed 1 | . . . . . . . 1 . . . . . . . . Overflow Damage 539 | . . . . . . 315 58 . . . . 166 . . . Projectiles 19 | . . . . . . 2 . . . . . 17 . . . Explosions 438 | . . . . . . 313 58 . . . . 67 . . . Melee 82 | . . . . . . . . . . . . 82 . . . Knockbacks 2 | . . . . . . 2 . . . . . . . . . Impact . | . . . . . . . . . . . . . . . . Kinetic 2 | . . . . . . 2 . . . . . . . . . Secondary . | . . . . . . . . . . . . . . . . Self-Inflicted Damage 588 | . . . . 97 . 410 6 . . . 75 . . . . Shots 11 | . . . . 3 . 7 . . . . 1 . . . . Rammed 2 | . . . . . . . 1 . . . . 1 . . . Targets Rammed 2 | . . . . . . . 1 . . . . 1 . . . Kicked . | . . . . . . . . . . . . . . . . Crushed . | . . . . . . . . . . . . . . . . Highest Temperature 454 | . 85 54 74 12 . 307 324 83 69 147 108 454 8 219 198 Average Temperature 63 | . 19 18 11 6 . 73 135 29 29 50 46 134 7 64 30 Received Heat Transfer 2401 | . 327 87 294 6 . 420 54 436 27 27 36 633 . 54 . Effects 2 | . . . . . . . . . . . . 2 . . . Shutdowns 2 | . . . . . . . . . . . . 2 . . . Siege Activations 2 | . . . . . . . . . . . . 2 . . . Total Turns 109 | . . . . . . . . . . . . 109 . . . Longest Duration 92 | . . . . . . . . . . . . 92 . . . Martial Activations . | . . . . . . . . . . . . . . . . Shielding Activations . | . . . . . . . . . . . . . . . . Robots Disrupted 3 | . . . . . . 2 . 1 . . . . . . . Combat Hostiles 3 | . . . . . . 2 . 1 . . . . . . . Robots Corrupted 5 | . . . 1 . . 2 1 . . . 1 . . . . Combat Hostiles 4 | . . . 1 . . 2 1 . . . . . . . . Parts Fried 18 | . . . 3 . . 3 . 2 . . 8 2 . . . Impact Corruptions . | . . . . . . . . . . . . . . . . Robots Melted 2 | . . . . . . . . . . . . 2 . . . Combat Hostiles 1 | . . . . . . . . . . . . 1 . . . Parts Melted 24 | . 1 2 3 1 . 3 10 . . . . 4 . . . Heat Transferred 9935 | 425 407 851 2085 476 . 2432 1405 50 . 222 285 1223 . . 74 Parts Sabotaged . | . . . . . . . . . . . . . . . . Parts Stolen . | . . . . . . . . . . . . . . . . Parts Stripped . | . . . . . . . . . . . . . . . . Power Chain Reactions 14 | . . . 4 3 . 5 . 1 . . 1 . . . . Alert | -11 -10 -9 -9 -9 -9 -6 -5 -5 -5 -5 -5 -4 -4 -4 -4 ------- Run | Yrd Mat Mat Sto Rec Scr Fac Fac Ext Cet Arc Hub Fac Gar Fac Gar Maximum Alert Level 3 | . . 1 1 . . 1 1 3 3 2 3 2 2 1 1 Low Security (%) 42 | 100 100 98 24 100 . 65 86 16 . . 67 . . . . Level 1 27 | . . 1 75 . . 34 13 14 . 93 11 25 26 100 99 Level 2 26 | . . . . . . . . 55 95 6 . 74 73 . . Level 3 3 | . . . . . . . . 12 4 . 20 . . . . Level 4 . | . . . . . . . . . . . . . . . . Level 5 . | . . . . . . . . . . . . . . . . High Security . | . . . . . . . . . . . . . . . . Max Security . | . . . . . . . . . . . . . . . . Peak Influence 1025 | 15 138 208 278 172 . 350 248 1025 712 417 926 577 648 343 301 Initial 570 | . . 45 66 91 . . 123 105 570 233 70 439 296 321 196 Average 284 | 3 76 136 219 93 . 180 76 464 634 304 283 430 474 322 266 Influence Increases 8457 | 40 317 320 772 350 . 752 496 2152 259 266 1318 844 367 89 115 Destroy 0b10 Robot/C 3520 | . 180 180 460 80 . 340 220 1180 80 80 280 300 100 . 40 Destroy 0b10 Robot/NC 520 | 40 15 30 50 50 . 105 55 40 5 15 65 50 . . . Destroy Leader 614 | . 56 48 132 . . 64 54 94 . . 78 88 . . . Allied During Kill 1143 | . . . . 4 . 2 12 658 67 95 295 . 10 . . Trap Triggered on 0b10 60 | . . . . . . . . . . . . 60 . . . Successful Hack 252 | . 5 14 26 19 . . . 16 7 . 14 93 18 40 . Select Force Hacks 210 | . . 30 30 150 . . . . . . . . . . . Disable Machine 690 | . . . 60 30 . 150 75 15 90 60 165 45 . . . Anti-Garrison Action 200 | . . . . . . . . . . . . . 150 . 50 Destroy Structure 648 | . 1 3 14 17 . 76 50 74 10 16 256 88 29 4 10 Partial Spotted 30 | . . . . . . . . . . . . . . 30 . Lose Combat Pursuer 570 | . 60 15 . . . 15 30 75 . . 165 120 60 15 15 Influence Decreases 8176 | 40 209 271 695 584 . 500 531 1350 695 646 623 1319 177 422 114 Entered New Map 2432 | . . 63 91 143 . . 129 112 449 350 133 459 127 292 84 Time Decay 3951 | 40 179 198 434 441 . 342 347 618 246 246 270 490 . 100 . Lost Part 825 | . 30 10 30 . . 150 55 60 . 10 80 370 10 10 10 Lost Ally 668 | . . . 140 . . 8 . 260 . 40 140 . 40 20 20 Purge Threat 300 | . . . . . . . . 300 . . . . . . . Squads Dispatched 40 | . 4 1 4 . . 5 6 5 . . 3 11 . 1 . Investigation 14 | . 2 1 2 . . 1 1 2 . . . 5 . . . Extermination 6 | . . . . . . 1 2 . . . 1 2 . . . Reinforcement 18 | . 2 . 2 . . 3 3 2 . . 2 4 . . . Assault 1 | . . . . . . . . 1 . . . . . . . Garrison 1 | . . . . . . . . . . . . . . 1 . Intercept . | . . . . . . . . . . . . . . . . Searches Triggered . | . . . . . . . . . . . . . . . . Construction Impeded 4 | . . . . . . 1 1 2 . . . . . . . Haulers Reinforced 1 | . . . . . . . . . . . . 1 . . . Active Scanning Responses . | . . . . . . . . . . . . . . . . Cargo Convoy Interrupts . | . . . . . . . . . . . . . . . . Stealth | -11 -10 -9 -9 -9 -9 -6 -5 -5 -5 -5 -5 -4 -4 -4 -4 --------- Run | Yrd Mat Mat Sto Rec Scr Fac Fac Ext Cet Arc Hub Fac Gar Fac Gar Distress Signals 13 | . 4 1 . . . . 4 1 1 . . 1 . 1 . Communications Jammed 11 | . . . . . . . 2 . . . 4 5 . . . Distress Signals 11 | . . . . . . . 2 . . . 4 5 . . . Times Spotted 273 | . 14 17 27 4 . 36 16 62 7 4 26 36 9 11 4 Peak Tracking Total 11 | . 5 4 5 3 . 7 5 7 5 1 11 8 5 6 3 Tactical Retreats 25 | . 3 1 . . . 1 2 5 . . 4 5 2 1 1 Traps | -11 -10 -9 -9 -9 -9 -6 -5 -5 -5 -5 -5 -4 -4 -4 -4 ------- Run | Yrd Mat Mat Sto Rec Scr Fac Fac Ext Cet Arc Hub Fac Gar Fac Gar Traps Triggered 22 | . 3 . 1 . . 3 3 2 . . . 5 4 . 1 Indirectly . | . . . . . . . . . . . . . . . . Trap Hack Attempts . | . . . . . . . . . . . . . . . . Triggered . | . . . . . . . . . . . . . . . . Disarmed . | . . . . . . . . . . . . . . . . Reprogrammed 9 | . . . . . . . . . . . . 9 . . . Reused 6 | . . . . . . . . . . . . 6 . . . Traps Extracted . | . . . . . . . . . . . . . . . . Installed . | . . . . . . . . . . . . . . . . Triggered 6 | . . . . . . . . . . . . 6 . . . Machines | -11 -10 -9 -9 -9 -9 -6 -5 -5 -5 -5 -5 -4 -4 -4 -4 ---------- Run | Yrd Mat Mat Sto Rec Scr Fac Fac Ext Cet Arc Hub Fac Gar Fac Gar Machines Disabled 54 | . . . 4 2 . 10 5 5 7 4 11 3 2 . 1 Max in Single Turn 7 | . . . 1 1 . 4 3 1 1 1 7 1 1 . 1 Garrison Relay 3 | . . . . . . . . . . . . . 2 . 1 Network Hub 1 | . . . . . . . . . . . 1 . . . . Machines Repaired . | . . . . . . . . . . . . . . . . Machines Dismantled 9 | . . . . . . . 1 1 6 . . . 1 . . Machines Sabotaged . | . . . . . . . . . . . . . . . . Overloaded Fab Kills . | . . . . . . . . . . . . . . . . Hacking | -11 -10 -9 -9 -9 -9 -6 -5 -5 -5 -5 -5 -4 -4 -4 -4 --------- Run | Yrd Mat Mat Sto Rec Scr Fac Fac Ext Cet Arc Hub Fac Gar Fac Gar Machines Accessed 71 | . 2 6 11 9 5 3 2 9 3 1 3 11 2 4 . Terminals 44 | . 2 5 8 4 . 1 . 8 3 . 3 6 2 2 . Fabricators 3 | . . . . . . 1 1 . . . . . . 1 . Repair Stations 1 | . . . 1 . . . . . . . . . . . . Recycling Units 15 | . . 1 2 5 . 1 1 1 . . . 4 . . . Scanalyzers . | . . . . . . . . . . . . . . . . Garrison Access 2 | . . . . . . . . . . . . 1 . 1 . Total Hacks 215 | . 3 19 37 30 25 9 2 18 8 5 6 38 6 9 . Successful 120 | . 2 6 17 21 25 1 1 10 2 5 1 22 1 6 . Failed 95 | . 1 13 20 9 . 8 1 8 6 . 5 16 5 3 . Catastrophic 20 | . 1 1 3 3 . 1 1 2 1 . 1 3 2 1 . Database Lockouts . | . . . . . . . . . . . . . . . . Manual 106 | . 1 8 18 21 . 8 2 12 1 . 2 26 1 6 . Terminals 139 | . 3 17 28 16 . 4 . 17 8 . 6 28 6 6 . Fabricators 4 | . . . . . . 1 1 . . . . . . 2 . Repair Stations 4 | . . . 4 . . . . . . . . . . . . Recycling Units 35 | . . 2 5 14 . 4 1 1 . . . 8 . . . Scanalyzers . | . . . . . . . . . . . . . . . . Garrison Access 3 | . . . . . . . . . . . . 2 . 1 . Terminal Hacks 70 | . 2 4 7 5 25 1 . 6 2 5 1 9 1 2 . Record 32 | . . . . . 24 . . . 2 5 . 1 . . . Part Schematic 3 | . . . 1 2 . . . . . . . . . . . Robot Analysis 2 | . . . . 1 . . . . . . . 1 . . . Prototype ID Bank 3 | . 1 1 . 1 . . . . . . . . . . . Open Door 4 | . . . 2 . . . . 2 . . . . . . . Branch Access Points 2 | . . 1 . . . . . . . . . 1 . . . Recycling Unit Index 1 | . . . . . . . . . . . . 1 . . . Alert Level 3 | . . . . 1 . . . 1 . . . . . 1 . Unreport Threat 2 | . . . . . . . . 2 . . . . . . . Locate Traps 9 | . . 2 1 . . 1 . 1 . . 1 2 . 1 . Reprogram Traps 2 | . . . . . . . . . . . . 2 . . . Maintenance Status 1 | . 1 . . . . . . . . . . . . . . Recall Reinforcements 1 | . . . . . . . . . . . . 1 . . . Hauler Manifests 1 | . . . 1 . . . . . . . . . . . . Zone Layout 2 | . . . 2 . . . . . . . . . . . . Garrison Registry 1 | . . . . . . . . . . . . . 1 . . Proto ID Catalog 1 | . . . . . 1 . . . . . . . . . . Fabricator Hacks . | . . . . . . . . . . . . . . . . Repair Station Hacks 4 | . . . 4 . . . . . . . . . . . . Scan Component 2 | . . . 2 . . . . . . . . . . . . Repair 2 | . . . 2 . . . . . . . . . . . . Recycling Unit Hacks 8 | . . . . 5 . . . . . . . 3 . . . Report Inventory 1 | . . . . 1 . . . . . . . . . . . Retrieve Components 7 | . . . . 4 . . . . . . . 3 . . . Scanalyzer . | . . . . . . . . . . . . . . . . Garrison Access Hacks 2 | . . . . . . . . . . . . 1 . 1 . Unlock Access 2 | . . . . . . . . . . . . 1 . 1 . Unauthorized Hacks 36 | . . 2 6 11 . . 1 4 . . . 9 . 3 . Terminals 18 | . . 1 5 2 . . . 3 . . . 5 . 2 . Track 1 | . . . 1 . . . . . . . . . . . . Assimilate 1 | . . . 1 . . . . . . . . . . . . Botnet 14 | . . . 2 2 . . . 3 . . . 5 . 2 . Disrupt 1 | . . 1 . . . . . . . . . . . . . Operators 1 | . . . 1 . . . . . . . . . . . . Fabricators 1 | . . . . . . . . . . . . . . 1 . Fabnet 1 | . . . . . . . . . . . . . . 1 . Repair Stations . | . . . . . . . . . . . . . . . . Recycling Units 17 | . . 1 1 9 . . 1 1 . . . 4 . . . Monitor 1 | . . . . 1 . . . . . . . . . . . Reject 1 | . . . . 1 . . . . . . . . . . . Recyclers 1 | . . . . 1 . . . . . . . . . . . Mask 1 | . . . . 1 . . . . . . . . . . . Tunnel 7 | . . 1 1 5 . . . . . . . . . . . Fedlink 6 | . . . . . . . 1 1 . . . 4 . . . Scanalyzers . | . . . . . . . . . . . . . . . . Garrison Access . | . . . . . . . . . . . . . . . . Data Cores Recovered 2 | . . 1 . . . . . . . . 1 . . . . Used 1 | . . . . . . . . . . . 1 . . . . Hacking Detections 51 | . 1 5 8 5 . 3 1 7 4 . 3 9 2 3 . Full Trace Events 9 | . . 1 2 4 . 1 . . . . . . 1 . . Feedback Events . | . . . . . . . . . . . . . . . . Feedback Blocked . | . . . . . . . . . . . . . . . . Robot Schematics Acquired . | . . . . . . . . . . . . . . . . Robots Built . | . . . . . . . . . . . . . . . . Authchips . | . . . . . . . . . . . . . . . . Time . | . . . . . . . . . . . . . . . . Total Robot Build Rating . | . . . . . . . . . . . . . . . . Part Schematics Acquired 3 | . . . 1 2 . . . . . . . . . . . Parts Built . | . . . . . . . . . . . . . . . . Authchips . | . . . . . . . . . . . . . . . . Time . | . . . . . . . . . . . . . . . . Total Part Build Rating . | . . . . . . . . . . . . . . . . Parts Repaired 2 | . . . 2 . . . . . . . . . . . . Time 64 | . . . 64 . . . . . . . . . . . . Parts Recycled . | . . . . . . . . . . . . . . . . Recycled Matter . | . . . . . . . . . . . . . . . . Retrieved Matter . | . . . . . . . . . . . . . . . . Retrieved Components 24 | . . . . 11 . . . . . . . 13 . . . Parts Scanalyzed . | . . . . . . . . . . . . . . . . Part Schematics Acquired . | . . . . . . . . . . . . . . . . Parts Damaged . | . . . . . . . . . . . . . . . . Bothacking | -11 -10 -9 -9 -9 -9 -6 -5 -5 -5 -5 -5 -4 -4 -4 -4 ------------ Run | Yrd Mat Mat Sto Rec Scr Fac Fac Ext Cet Arc Hub Fac Gar Fac Gar Used RIF Installer 1 | . . . . . . . . . . . . . 1 . . Robots Hacked 9 | . . . . . . 2 1 . . . . . . 5 1 Non-combat 3 | . . . . . . . . . . . . . . 3 . Combat 3 | . . . . . . . . . . . . . . 2 1 Robot Hacks Applied 8 | . . . . . . . . . . . . . . 7 1 no_distress 2 | . . . . . . . . . . . . . . 2 . map_walls 1 | . . . . . . . . . . . . . . 1 . find_recycling 1 | . . . . . . . . . . . . . . 1 . ignore_parts 1 | . . . . . . . . . . . . . . 1 . overload_power 1 | . . . . . . . . . . . . . . 1 . overwrite_iff 1 | . . . . . . . . . . . . . . . 1 formatsys_high 1 | . . . . . . . . . . . . . . 1 . Manual 3 | . . . . . . 2 1 . . . . . . . . Relay Couplers Released 11 | . . . . . . . . . . . . . 7 . 4 Machine Destruction 11 | . . . . . . . . . . . . . 7 . 4 Attached 8 | . . . . . . . . . . . . . 6 . 2 Fabnet Peak Effective % . | . . . . . . . . . . . . . . . . Robots Rewired 28 | . . . . 9 . . . 19 . . . . . . . Allies Hacked . | . . . . . . . . . . . . . . . . Hacks Repelled . | . . . . . . . . . . . . . . . . Allies | -11 -10 -9 -9 -9 -9 -6 -5 -5 -5 -5 -5 -4 -4 -4 -4 -------- Run | Yrd Mat Mat Sto Rec Scr Fac Fac Ext Cet Arc Hub Fac Gar Fac Gar Total Allies 44 | . . . . 9 . 1 1 24 5 . . . 2 1 1 Largest Group 13 | . . . . 9 5 5 1 11 13 13 10 . 2 1 1 Highest-Rated Group 854 | . . . . 104 66 66 72 473 854 854 630 . 171 49 56 Highest-Rated Ally 159 | . . . . 27 27 27 72 159 159 159 96 . 95 49 56 Total Orders 2 | . . . 1 . 1 . . . . . . . . . . PICKUP 1 | . . . . . 1 . . . . . . . . . . EXPLORE 1 | . . . 1 . . . . . . . . . . . . Ally Attacks 378 | . . . . . . 5 6 222 33 35 60 . 14 2 1 Total Damage 8875 | . . . . . . 85 246 4610 577 749 1875 . 633 71 29 Kills 68 | . . . . . . . 5 38 5 4 11 . 5 . . Allies Corrupted 1 | . . . . . . . . . . . 1 . . . . Allies Melted 1 | . . . . . . . . 1 . . . . . . . Intel | -11 -10 -9 -9 -9 -9 -6 -5 -5 -5 -5 -5 -4 -4 -4 -4 ------- Run | Yrd Mat Mat Sto Rec Scr Fac Fac Ext Cet Arc Hub Fac Gar Fac Gar Active Infowar (turns) 3174 | 22 73 . . . . 480 886 70 . 150 514 979 . . . Optics 132 | . . . . . . . . . . . . 132 . . . Sensors 615 | . . . . . . . 380 . . . . 235 . . . Structural 103 | . . . . . . . . . . . . 103 . . . Seismic 95 | 22 73 . . . . . . . . . . . . . . Decoding 198 | . . . . . . 198 . . . . . . . . . Machine Analysis 247 | . . . . . . . . . . . . 247 . . . Jamming 2433 | . . . . . . 282 506 70 . 150 514 911 . . . Robot Analysis Total 2 | . . . . 1 . . . . . . . 1 . . . Derelict Logs Recovered . | . . . . . . . . . . . . . . . . Drone Launches 14 | . . . 14 . . . . . . . . . . . . Drone Recoveries . | . . . . . . . . . . . . . . . . Decoded 0b10 Intel 4 | . . . . . . 4 . . . . . . . . . Items 4 | . . . . . . 4 . . . . . . . . . Exploration | -11 -10 -9 -9 -9 -9 -6 -5 -5 -5 -5 -5 -4 -4 -4 -4 ------------- Run | Yrd Mat Mat Sto Rec Scr Fac Fac Ext Cet Arc Hub Fac Gar Fac Gar Turns Passed 12812 | 187 459 409 1077 1109 1981 836 1072 2073 520 526 587 1289 252 204 231 Spaces Moved 8164 | 115 291 277 540 787 1938 415 615 984 218 219 319 697 321 317 111 Core 97 | 4 . . . . . . . . . . . 82 11 . . Treads 570 | . 1 1 2 . . 9 . 395 . . 2 160 . . . Legs 818 | . . . . . . . . 251 218 219 110 20 . . . Wheels 5864 | 111 290 276 538 787 1938 406 615 338 . . 207 358 . . . Hover 393 | . . . . . . . . . . . . 71 . 211 111 Flight 422 | . . . . . . . . . . . . 6 310 106 . Fastest Speed 30 | 50 80 95 95 95 95 95 101 120 120 120 115 40 30 30 48 Average Speed 107 | 81 88 103 99 97 95 120 116 143 120 181 146 126 34 50 48 Slowest Speed 260 | 90 240 240 240 100 95 250 160 250 260 190 240 240 50 120 48 Overloaded Moves . | . . . . . . . . . . . . . . . . Propulsion Burnouts . | . . . . . . . . . . . . . . . . Robots Hopped 1 | . . . . . . . . 1 . . . . . . . Potential Cave-ins 3 | . . . . . . . . . . . . 3 . . . Cave-ins Triggered 1 | . . . . . . . . . . . . 1 . . . Exploration Rate (%) 47 | 3 56 33 92 94 89 13 12 88 81 96 33 19 34 8 14 Regions Visited 15 Branch Regions 7 Pre-discovered Areas 14 | . . 1 2 5 5 . . 1 . . . . . . . Known Exits Taken 9 | . . 1 . . . 1 1 1 1 1 1 1 . 1 . Unknown Exits Taken 5 | 1 1 . 1 1 1 . . . . . . . . . . Scrap Searched 6 | . . . . . 6 . . . . . . . . . . Spaces Dug 183 | . . . 2 . . 2 . . . . 166 13 . . . Terrain Destroyed 414 | . . . 9 14 . 125 24 8 . 8 179 45 . 2 . Melee 15 | . . . 2 . . . . . . . . 13 . . . Projectile 48 | . . . . . . 7 2 4 . 8 12 13 . 2 . AOE 346 | . . . 7 14 . 118 21 . . . 167 19 . . . Terrain Rammed . | . . . . . . . . . . . . . . . . Walls Destroyed . | . . . . . . . . . . . . . . . . Machines Disabled . | . . . . . . . . . . . . . . . . Actions | -11 -10 -9 -9 -9 -9 -6 -5 -5 -5 -5 -5 -4 -4 -4 -4 --------- Run | Yrd Mat Mat Sto Rec Scr Fac Fac Ext Cet Arc Hub Fac Gar Fac Gar Total 11071 | 164 399 350 903 1105 2084 636 850 1490 373 333 415 931 439 361 238 Wait 1054 | 2 20 27 183 192 119 78 71 51 55 93 31 22 46 7 57 Move 8146 | 114 290 276 539 786 1937 414 614 981 217 218 318 695 320 316 111 Hop 1 | . . . . . . . . 1 . . . . . . . Pick Up 139 | 15 17 3 11 2 12 9 20 14 6 1 2 13 . 11 3 Fast Attach 138 | . 2 2 14 1 . 14 21 10 9 4 9 32 14 6 . Attach 92 | 7 3 3 1 . . 21 9 10 1 1 9 22 1 2 2 Detach 34 | . . 2 1 . . 13 3 2 1 . 4 7 1 . . Swap 99 | 1 9 7 21 1 3 9 7 22 7 . 2 7 . 1 2 Drop 179 | 3 11 4 27 4 13 14 23 23 17 4 12 16 3 4 1 Fire 575 | 22 47 26 83 13 . 64 61 80 12 12 28 69 7 2 49 Melee 62 | . . . 16 . . . . 1 . . . 30 3 12 . Ram 2 | . . . . . . . 1 . . . . 1 . . . Kick . | . . . . . . . . . . . . . . . . Crush . | . . . . . . . . . . . . . . . . Escape Stasis 103 | . . . . . . . 16 16 . . . 17 41 . 13 Rewire 377 | . . . . 106 . . . 271 . . . . . . . Trap . | . . . . . . . . . . . . . . . . Miscellaneous 70 | . . . 7 . . . 4 8 48 . . . 3 . . Route ------- -11/Scrapyard -10/Materials (discovered 2 exits: *Mat / [*Min]) -9/Materials (discovered 3 exits: Min / *Sto x2) -9/Storage (discovered 2 exits: [*Mat] / *Rec) -9/Recycling (discovered 2 exits: [*Fac] / *Scr) -9/Scraptown -6/Factory (discovered 4 exits: *Fac x2 / Low x2) -5/Factory -5/Extension (discovered 2 exits: *Fac / *Cet) -5/Cetus -5/Archives (discovered 3 exits: *Fac / *Hub x2) -5/Hub_04(d) -4/Factory (discovered 6 exits: Res x2 / Upp x2 / Arm / Gar) -4/Garrison (discovered 3 exits: *Fac x3) -4/Factory -4/Garrison History --------- Turn | Location | Event 37 | -11/Scrapyard | Discovered new exit (range 12) 188 | -11/Scrapyard | Entered Materials 301 | -10/Materials | Build established: Mutant 337 | -10/Materials | Lost 3 parts (1n1u1w) 405 | -10/Materials | Discovered new exit (range 16) 618 | -10/Materials | Discovered new exit (range 9) 647 | -10/Materials | Entered another Materials area 647 | -9/Materials | Evolved 2 slots: Utility x2 825 | -9/Materials | Identified exit to Mines 825 | -9/Materials | Identified exit to Storage 1056 | -9/Materials | Entered Storage 1103 | -9/Storage | Learned location of Armory (-4) 1270 | -9/Storage | Discovered new exit (range 16) 1339 | -9/Storage | Discovered new exit (range 56) 1363 | -9/Storage | Used back door to open Recycling access 1371 | -9/Storage | Lost 4 allies 1488 | -9/Storage | Lost 5 allies 1804 | -9/Storage | Build established: Scavenger-Mutant 1976 | -9/Storage | Repaired Imp. Heat Sink 2004 | -9/Storage | Repaired Wheel 2133 | -9/Storage | Entered Recycling 2505 | -9/Recycling | Scanned before Scraplab entrance 2604 | -9/Recycling | Build established: Mutant 2658 | -9/Recycling | Discovered new exit (range 16) 2979 | -9/Recycling | Murdered 4 allies 3160 | -9/Recycling | Build established: Commander-Mutant 3170 | -9/Recycling | Entered Scraplab 3178 | -9/Recycling | Discovered new exit (range 3) 3242 | -9/Recycling | Entered Scraptown 3242 | -9/Scraptown | Accompanied by 5 allies 3515 | -9/Scraptown | Visited The Evicted 3562 | -9/Scraptown | Visited Bundlers 3695 | -9/Scraptown | Visited Symbiants 3841 | -9/Scraptown | Visited Supply Room 4009 | -9/Scraptown | Visited UFD Registry 4009 | -9/Scraptown | Registered with UFD as "Cogglider" 4022 | -9/Scraptown | Visited Cyclists 4030 | -9/Scraptown | Entered Cyclist Reading Room 4046 | -9/Scraptown | Visited TADAMA 4087 | -9/Scraptown | Visited Assassins FH 4146 | -9/Scraptown | Visited Science Guys 4177 | -9/Scraptown | Visited LU-1G1's Boring Crew 4194 | -9/Scraptown | Visited Curators Association 4357 | -9/Scraptown | Visited Scrap Suit Storage 4375 | -9/Scraptown | Visited Supply Room 4408 | -9/Scraptown | Visited Scrapoid Pod Storage 4424 | -9/Scraptown | Visited Abandonware Association 4431 | -9/Scraptown | Learned abandonware demo "OVRCLOCK.EXE" 4440 | -9/Scraptown | Learned abandonware demo "REPAIR.EXE" 4440 | -9/Scraptown | Learned abandonware demo "POISON.EXE" 4740 | -9/Scraptown | Visited Botcube Research 4745 | -9/Scraptown | Found Lrg. Botcube 4769 | -9/Scraptown | Visited Cartography Club 4996 | -9/Scraptown | Learned location of Proximity Caves (-6) 4996 | -9/Scraptown | Learned location of Zion (-6) 4996 | -9/Scraptown | Learned location of Extension (-5) 4996 | -9/Scraptown | Learned 12 Factory zone layouts 4996 | -9/Scraptown | Learned 16 Research zone layouts 4996 | -9/Scraptown | Learned 12 Lower Caves zone layouts 4996 | -9/Scraptown | Learned 8 Lower Caves zone layouts 4996 | -9/Scraptown | Learned 16 Upper Caves zone layouts 4996 | -9/Scraptown | Learned location of 1 exit from Research 4996 | -9/Scraptown | Learned location of 1 exit from Upper Caves 5127 | -9/Scraptown | Met Optimus 5127 | -9/Scraptown | Accepted into 0bPrime 5186 | -9/Scraptown | Discovered new exit (range 3) 5223 | -9/Scraptown | Entered Factory 5223 | -6/Factory | Accompanied by 5 allies 5223 | -6/Factory | Evolved 6 slots: Propulsion x1, Utility x4, Weapon x1 5224 | -6/Factory | Identified exit to Lower Caves 5225 | -6/Factory | Identified exit to Factory 5297 | -6/Factory | Lost 5 allies 5379 | -6/Factory | Infected Heavy with POISON.EXE 5753 | -6/Factory | Build established: Scavenger-Gunner 5804 | -6/Factory | Lost 3 parts (1n2u) 6017 | -6/Factory | Assembled infested ambush trap array 6033 | -6/Factory | Discovered exit to Factory (range 14) 6059 | -6/Factory | Entered another Factory area 6059 | -5/Factory | Evolved 2 slots: Utility x2 6090 | -5/Factory | Lost 6 parts (2n2u2w) 6345 | -5/Factory | Loaded intel: 8 recycling unit locations 6356 | -5/Factory | Build established: Scavenger-Mutant 6537 | -5/Factory | Lost 3 parts (1n1u1w) 6569 | -5/Factory | Infected Heavy with POISON.EXE 6635 | -5/Factory | Lost 7 parts (1p3n2u1w) 6861 | -5/Factory | Lrg. Botcube activated 6874 | -5/Factory | Build established: Scavenger-Tank 6887 | -5/Factory | Lrg. Botcube completed mutation into legged form, armed with 4 guns. 7057 | -5/Factory | Discovered new exit (range 12) 7113 | -5/Factory | Identified exit to Extension 7131 | -5/Factory | Entered Extension 7131 | -5/Extension | Accompanied by 1 ally 7393 | -5/Extension | Loaded intel: 1 recycling unit location 7393 | -5/Extension | Learned location of Protoforge (-2) 7731 | -5/Extension | First assault squad dispatched 7739 | -5/Extension | Spotted B-75 Beast 7762 | -5/Extension | Allies destroyed B-75 Beast 7787 | -5/Extension | Spotted B-75 Beast 7814 | -5/Extension | Allies destroyed B-75 Beast 7831 | -5/Extension | Disrupted transfer network 7852 | -5/Extension | Lost 6 allies 7857 | -5/Extension | P-70 Sage assimilated allied ST-0FC(h) 7950 | -5/Extension | Rescued a captive Derelict 7950 | -5/Extension | Rescued a captive Derelict 8193 | -5/Extension | Build established: Scavenger-Gunner 8244 | -5/Extension | Lost 3 allies 8305 | -5/Extension | Rescued a captive Derelict 8306 | -5/Extension | Rescued a captive Derelict 8517 | -5/Extension | Rescued A7 9007 | -5/Extension | Core integrity fell below 50% 9131 | -5/Extension | Discovered new exit (range 16) 9131 | -5/Extension | Discovered new exit (range 16) 9158 | -5/Extension | Identified exit to Factory 9162 | -5/Extension | Identified exit to Cetus 9204 | -5/Extension | Entered Cetus 9204 | -5/Cetus | Accompanied by 9 allies (A7) 9209 | -5/Cetus | Acquired a Cetus Manufacturing Module code from A7 9221 | -5/Cetus | Spotted Cetus Guard 9221 | -5/Cetus | Spotted Cetus Guard 9224 | -5/Cetus | Spotted Cetus Guard 9224 | -5/Cetus | Spotted Cetus Guard 9230 | -5/Cetus | Allies destroyed Cetus Guard 9233 | -5/Cetus | Allies destroyed Cetus Guard 9239 | -5/Cetus | Destroyed Cetus Guard 9242 | -5/Cetus | Allies destroyed Cetus Guard 9360 | -5/Cetus | Started Cetus Manufacturing Module 9385 | -5/Cetus | Manufactured an Enhanced Grunt 9395 | -5/Cetus | Escorted A7 to Cetus Mainframe 9410 | -5/Cetus | Manufactured an Enhanced Grunt 9435 | -5/Cetus | Manufactured an Enhanced Grunt 9460 | -5/Cetus | Manufactured an Enhanced Grunt 9485 | -5/Cetus | Manufactured an Enhanced Grunt 9613 | -5/Cetus | Cetus Manufacturing Module disabled 9648 | -5/Cetus | Discovered new exit (range 16) 9665 | -5/Cetus | Identified exit to Archives 9724 | -5/Cetus | Entered Archives 9724 | -5/Archives | Accompanied by 13 allies (A7) 9731 | -5/Archives | Received a hacking code to weaken MAIN.C 9755 | -5/Archives | Build established: Commander-Gunner 9786 | -5/Archives | Unable to access archive contents 9805 | -5/Archives | Unable to access archive contents 9807 | -5/Archives | Discovered new exit (range 16) 9828 | -5/Archives | Unable to access archive contents 9835 | -5/Archives | Discovered new exit (range 16) 9847 | -5/Archives | Unable to access archive contents 9856 | -5/Archives | Discovered exit to Factory (range 16) 9907 | -5/Archives | Identified exit to Hub_04(d) 10085 | -5/Archives | Build established: Scavenger-Gunner 10250 | -5/Archives | Entered Hub_04(d) 10250 | -5/Hub_04(d) | Accompanied by 10 allies 10620 | -5/Hub_04(d) | Spotted B-75 Beast 10644 | -5/Hub_04(d) | Allies destroyed B-75 Beast 10718 | -5/Hub_04(d) | Network Hub disabled 10728 | -5/Hub_04(d) | Disrupted transfer network 10729 | -5/Hub_04(d) | Spotted Lightning 10732 | -5/Hub_04(d) | Spotted Lightning 10735 | -5/Hub_04(d) | Spotted Lightning 10762 | -5/Hub_04(d) | Lost 6 allies 10793 | -5/Hub_04(d) | Discovered exit to Factory (range 16) 10837 | -5/Hub_04(d) | Entered Factory 10837 | -4/Factory | Evolved 2 slots: Propulsion x2 10838 | -4/Factory | Identified exit to Research 10868 | -4/Factory | Lost 7 parts (1p1n3u2w) 10959 | -4/Factory | Identified exit to Upper Caves 10959 | -4/Factory | Identified exit to Armory 11288 | -4/Factory | Loaded intel: 8 recycling unit locations 11489 | -4/Factory | Crushed by falling debris 11776 | -4/Factory | Destroyed 8 combat bots 11794 | -4/Factory | Lost 6 parts (1p1n3u1w) 11902 | -4/Factory | Lost 7 parts (1p3n1u2w) 11998 | -4/Factory | Core integrity fell below 50% 12053 | -4/Factory | Lost 16 parts (1p5n7u3w) 12055 | -4/Factory | Spotted B-86 Titan 12072 | -4/Factory | Build established: Scavenger-Mutant 12112 | -4/Factory | Core integrity fell below 20% 12120 | -4/Factory | Identified exit to Garrison 12126 | -4/Factory | Entered Garrison 12139 | -4/Garrison | Installed Relay Interface Framework 12141 | -4/Garrison | Lost 6 parts (1p2n2u1w) 12163 | -4/Garrison | Garrison Relay disabled 12170 | -4/Garrison | Triggered checkpoint 12211 | -4/Garrison | Found embedded Infiltrators 12211 | -4/Garrison | Discovered new exit (range 10) 12220 | -4/Garrison | Identified exit to Factory 12253 | -4/Garrison | System corruption reached 10% 12304 | -4/Garrison | Discovered exit to Factory (range 48) 12304 | -4/Garrison | Discovered exit to Factory (range 14) 12304 | -4/Garrison | Discovered exit to Factory (range 73) 12306 | -4/Garrison | Triggered checkpoint 12327 | -4/Garrison | Garrison Relay disabled 12378 | -4/Garrison | Entered Factory 12401 | -4/Factory | Identified exit to Garrison 12542 | -4/Factory | Garrison activated, responded to threat 12582 | -4/Factory | Entered Garrison 12606 | -4/Garrison | Triggered checkpoint 12679 | -4/Garrison | Garrison Relay disabled 12813 | -4/Garrison | Destroyed by H-77 Assassin with Coil Gun Last Messages --------------- 12800_ Field strength at 23. 12801_ Field strength at 16. 12802_ Field strength at 9. 12803_ Field strength at 2. 12804_ Jacked H-77 Assassin... >>overwrite_iff Rewriting IFF filter. 12805_ Slug penetrates Wall. 12805_ Slug penetrates H-77 Assassin. 12805_ H-77 Assassin suffers critical hit (Destroy). 12805_ H-77 Assassin destroyed. 12805_ Slug penetrates Wall. 12805_ Stasis field depleted. 12810_ System corrupted: Matter fused (-7). 12810_ Jacked H-77 Assassin... >>streamctrl_high System outside max range to establish control (5). 12813_ Penetrated by Slug. Map ----- +----------------------------------------------------+ | ?????????????????????????????????????????????????? | | ?????????????????????????????????????????????????? | | ?????????????????????????????????????????????????? | | ?????????????????????????????????????????????????? | | ?????????????????????????????????????????????????? | | ?????????????????????????????????????????????????? | | ?????????????????????????????????????????????????? | | ?????????????????????????????????????????????????? | | ?????????????????????????????????????????????????? | | ?????????????????????????????????????????????????? | | ?????????????????????????????????????????????????? | | ?????????????????????????????????????????????????? | | ?????????????????????????????????????????????????? | | ?????????????????????????????????????????????????? | | ?????????????????????????????????????????????????? | | ?????????????????????????????????????????????????? | | ?????????????????????????????????????????????????? | | ?????????????????????????????????????????????????? | | ?????????????????????????????????????????????????? | | ?????????????????????????????????????????????????? | | ?????????????????????????????????????????????????? | | ????????????????????????????????????????? #??????? | | ????????????####?###################### #??????? | | ??????????### #?# #??????? | | ??????????#"# #?# =* #??????? | | ??????????#" ! #?# !h= @ #??????? | | ??????????# #?# ####################????????? | | ??????????#" #?# #???????????????????????????? | | ??????????#"# #?# #???????????????????????????? | | ??????????### #?# #???????????????????????????? | | ????????????# #?# #???????????????????????????? | | ????????????# #?# #???????????????????????????? | | ??????????### #?# #???????????????????????????? | | ???????#### #?# #???????????????????????????? | | ???????#*== #?# #???????????????????????????? | | ???????# ## #?# #???????????????????????????? | | ???????#[#### #?# #???????????????????????????? | | ???????#=#??# #?# #???????????????????????????? | | ???????#[#??# ### #???????????????????????????? | | ???????# #??# #???????????????????????????? | | ???????# #??# #???????????????????????????? | | ???????# #??###### #???????????????????????????? | | ???????# #???????# #???????????????????????????? | | ???????# #???????# #???????????????????????????? | | ??????##"######### #???????????????????????????? | | ??????# #???????????????????????????? | | ??????# #???????????????????????????? | | ??????# #???????????????????????????? | | ??????################???????????????????????????? | | ?????????????????????????????????????????????????? | +----------------------------------------------------+ Best States ------------- Heat Dissipation 90 Coolant Potential 80 Energy Generation 25 Energy Capacity 515 Matter Stores 500 Matter Capacity 500 Sight Range 20 Robot Scan Range 18 Terrain Scan Density 10 Jamming Range 14 Base Temperature (-) 150 EM Shielding 3 Armor Coverage 900 Resistance: KI 25 Resistance: TH 25 Resistance: EM 15 Utility Shielding 66 Point Defense Rating 80 Weapon Cycling 30 Evasion (%) 64 Targeting Accuracy 12 Target Analysis 6 Recoil Reduction 3 Offensive Hacking 32 Relay Coupler Types 4 Relay Coupler Value 157 Item Schematics ----------------- System Shield | -9/Storage | Hacked Lgt. EM Pulse Cannon | -9/Recycling | Hacked Seismic Detector | -9/Recycling | Hacked Robot Schematics ------------------ None Fabricated ------------ Nothing Repaired ---------- Imp. Heat Sink | 12% | -9/Storage Wheel | 2% | -9/Storage Alien Tech Used ----------------- None Achievements -------------- None Challenges ------------ None Game ------ Seed DynamicPortableWheel Manual? 0 Play Time 02:42:51 Cumulative 165.8 hours Start 2025.05.10 @ 15:13:50 End 2025.05.11 @ 11:53:49 Sessions 3 Manual Loads 0 Difficulty Rogue Special Mode None Game No. 186 Rogue 186 Adventurer 0 Explorer 0 Win Type - Total 1 Types 1/0/0/0/0/0/0/0/0/0 Lore% 68 Gallery% 68 Achievement% 61 Wizard Run 0 Options --------- Layout 1 ASCII 0 Keyboard 0 Movement Numpad Keybinds 0 Fullscreen 1 Font 24/Smallcaps Map View 50x35 Zoom Use 0% Tactical HUD 1 Map Filters NONE Filters NONE Steam 1 RUN: 3f58bce6-edab-433a-8953-21034eff6238